bitfinex/quotes_BTCUSD_20240831
["timestamp","ask_amount","ask_price","bid_price","bid_amount"]
[1725136844197,0.02653219,59078.0,59077.0,1.39631121]
[1725136848379,0.02735019,59078.0,59077.0,1.39631121]
[1725136848653,0.02735019,59078.0,59077.0,1.280793]
[1725136848820,0.02735019,59078.0,59077.0,1.39631121]
[1725136849912,0.02735019,59078.0,59077.0,0.942252]
[1725136851127,0.02735019,59078.0,59077.0,0.928252]
[1725136851331,0.02735019,59078.0,59077.0,0.942252]
[1725136851750,0.02735019,59078.0,59077.0,0.928252]
[1725136851957,0.02735019,59078.0,59077.0,0.942252]
[1725136852162,0.02735019,59078.0,59077.0,0.928252]
[1725136852359,0.02735019,59078.0,59077.0,0.942252]
[1725136852791,0.02735019,59078.0,59077.0,0.928252]
[1725136853183,0.02735019,59078.0,59077.0,0.942252]
[1725136854764,0.02735019,59078.0,59077.0,0.535811]
[1725136859272,0.000818,59078.0,59077.0,0.535811]
[1725136860093,0.000818,59078.0,59077.0,0.5367108]
[1725136862967,0.52002,59078.0,59077.0,0.0288998]
[1725136863186,0.920755,59078.0,59077.0,0.0288998]
[1725136863407,1.25929,59078.0,59077.0,0.0288998]
[1725136863619,1.25747849,59078.0,59077.0,0.0288998]
[1725136863940,1.25747849,59078.0,59077.0,0.0008998]
[1725136863941,1.35747849,59078.0,59077.0,0.0008998]
[1725136864234,1.35747849,59078.0,59077.0,0.0128998]
[1725136865275,1.35747849,59078.0,59077.0,0.0258998]
[1725136872719,1.35829649,59078.0,59077.0,0.0258998]
[1725136876422,1.35929,59078.0,59077.0,0.0258998]
[1725136883736,1.178623,59078.0,59077.0,0.0258998]
[1725136884088,1.34789,59078.0,59077.0,0.0258998]
[1725136886150,1.28569,59078.0,59077.0,0.0258998]
[1725136891786,1.40120821,59078.0,59077.0,0.0258998]
[1725136894832,1.184911,59076.0,59075.0,0.9267996]
[1725136895026,1.284911,59076.0,59075.0,0.9267996]
[1725136896238,1.284911,59076.0,59075.0,0.9407996]
[1725136897223,1.285911,59076.0,59075.0,0.9547996]
[1725136905418,1.40142921,59076.0,59075.0,0.9547996]
[1725136906269,1.06288321,59076.0,59075.0,0.9547996]
[1725136913373,0.947365,59076.0,59075.0,1.0273996]
[1725136914580,0.608819,59076.0,59075.0,1.0273996]
[1725136915935,0.608819,59076.0,59075.0,1.2852756]
[1725136915936,0.001,59076.0,59075.0,1.2852756]
[1725136916139,0.001,59076.0,59075.0,2.33836799]
[1725136916361,0.000818,59078.0,59075.0,2.33836799]
[1725136916362,0.000818,59078.0,59077.0,0.78452921]
[1725136916591,0.000818,59078.0,59077.0,1.12307021]
[1725136917037,0.000818,59078.0,59077.0,1.83757742]
[1725136917291,0.000818,59078.0,59077.0,1.83657742]
[1725136917522,0.000818,59078.0,59077.0,1.83557742]
[1725136917712,0.000818,59078.0,59077.0,1.45961121]
[1725136918791,0.000818,59078.0,59077.0,1.47361121]
[1725136918992,0.001818,59078.0,59077.0,1.48761121]
[1725136919195,0.000818,59078.0,59077.0,1.47361121]
[1725136919405,0.001818,59078.0,59077.0,1.55175163]
[1725136919628,0.001818,59078.0,59077.0,1.47561121]
[1725136919833,0.001818,59078.0,59077.0,1.49103121]
[1725136920037,0.001818,59078.0,59077.0,1.49303121]
[1725136920894,0.001818,59078.0,59077.0,1.49103121]
[1725136921135,0.001818,59078.0,59077.0,1.49303121]
[1725136921952,0.001818,59078.0,59077.0,1.54175194]
[1725136922159,0.001818,59078.0,59077.0,1.54375194]
[1725136922595,0.001818,59078.0,59077.0,1.49303121]
[1725136923868,0.001818,59078.0,59077.0,1.49803121]
[1725136924109,0.001818,59078.0,59077.0,1.88729294]
[1725136924349,0.001818,59078.0,59077.0,1.89229294]
[1725136924563,0.001818,59078.0,59077.0,1.84157221]
[1725136929564,0.001818,59078.0,59077.0,1.86257221]
[1725136929807,0.001818,59078.0,59077.0,1.86457221]
[1725136932954,0.001818,59078.0,59077.0,1.86547201]
[1725136934245,0.169217,59096.0,59088.0,0.338474]
[1725136934450,0.169217,59096.0,59092.0,0.169225]
[1725136935279,0.169217,59096.0,59092.0,0.258125]
[1725136935484,0.00818,59097.0,59093.0,0.169224]
[1725136935700,0.001,59096.0,59094.0,0.0723]
[1725136936104,0.002,59096.0,59094.0,0.0723]
[1725136936320,0.102,59096.0,59094.0,0.0723]
[1725136937326,0.1,59096.0,59094.0,0.0853]
[1725136938256,0.101,59096.0,59094.0,0.0983]
[1725136938925,0.101,59096.0,59094.0,0.26752]
[1725136939142,0.1,59095.0,59094.0,0.26752]
[1725136939417,0.001,59096.0,59095.0,0.169219]
[1725136940249,0.001,59096.0,59094.0,0.0983]
[1725136940451,0.001,59096.0,59094.0,0.0853]
[1725136940655,0.00818,59097.0,59094.0,0.255521]
[1725136941059,0.001,59095.0,59094.0,0.269521]
[1725136941231,0.001,59095.0,59094.0,0.255521]
[1725136941408,0.001,59095.0,59094.0,0.268521]
[1725136941841,0.001,59096.0,59094.0,0.268521]
[1725136942038,0.001,59096.0,59094.0,0.279521]
[1725136942411,0.00818,59097.0,59094.0,0.255521]
[1725136942614,0.00818,59097.0,59094.0,0.241521]
[1725136942814,0.00818,59097.0,59094.0,0.254521]
[1725136942994,0.00818,59097.0,59094.0,0.338701]
[1725136943199,0.00818,59097.0,59094.0,0.325701]
[1725136943612,0.177393,59097.0,59094.0,0.337701]
[1725136944352,0.000818,59096.0,59094.0,0.337701]
[1725136944749,0.001818,59096.0,59094.0,0.18148]
[1725136945150,0.001818,59096.0,59094.0,0.16848]
[1725136945372,0.171035,59096.0,59094.0,0.16848]
[1725136945580,0.001818,59096.0,59094.0,0.10718]
[1725136945796,0.171035,59096.0,59094.0,0.09518]
[1725136945990,0.170035,59096.0,59094.0,0.09718]
[1725136947031,0.169219,59095.0,59094.0,0.09718]
[1725136947287,0.169219,59095.0,59094.0,0.11018]
[1725136948144,0.169219,59095.0,59094.0,0.09718]
[1725136948358,0.000818,59096.0,59095.0,0.998295]
[1725136948569,0.000818,59096.0,59095.0,1.002295]
[1725136948765,0.000818,59096.0,59095.0,1.340733]
[1725136948971,0.000818,59096.0,59095.0,1.423233]
[1725136949599,0.000818,59096.0,59095.0,1.428233]
[1725136950000,0.000818,59096.0,59095.0,1.442233]
[1725136950414,0.000818,59096.0,59095.0,1.438233]
[1725136950622,0.000818,59096.0,59095.0,1.447233]
[1725136950835,0.000818,59096.0,59095.0,1.438233]
[1725136951057,0.000818,59096.0,59095.0,1.443233]
[1725136951946,0.000818,59096.0,59095.0,1.429233]
[1725136952154,0.000818,59096.0,59095.0,1.443233]
[1725136952826,0.000818,59096.0,59095.0,1.094795]
[1725136953030,0.000818,59096.0,59095.0,1.108795]
[1725136958455,0.000818,59096.0,59095.0,1.447233]
[1725136958704,0.000818,59096.0,59095.0,1.474233]
[1725136958902,0.000818,59096.0,59095.0,1.476233]
[1725136959163,0.000818,59096.0,59095.0,1.814671]
[1725136959397,0.000818,59096.0,59095.0,1.476233]
[1725136959609,0.00818,59097.0,59096.0,1.605644]
[1725136959838,0.00818,59097.0,59096.0,1.801544]
[1725136960320,0.00818,59097.0,59096.0,1.85213942]
[1725136960809,0.00818,59097.0,59096.0,1.86613942]
[1725136961546,0.00818,59097.0,59096.0,1.815544]
[1725136961783,0.00818,59097.0,59096.0,1.88014513]
[1725136962025,0.00818,59097.0,59096.0,1.85214513]
[1725136962274,0.00818,59097.0,59096.0,1.86614513]
[1725136962520,0.00818,59097.0,59096.0,1.815544]
[1725136962710,0.00818,59097.0,59096.0,1.96765418]
[1725136963221,0.00818,59097.0,59096.0,1.98165418]
[1725136963519,0.00818,59097.0,59096.0,1.52570397]
[1725136963749,0.00818,59097.0,59096.0,1.62722218]
[1725136963983,0.00818,59097.0,59096.0,1.60463021]
[1725136964240,0.00818,59097.0,59096.0,1.65522218]
[1725136964740,0.00818,59097.0,59096.0,1.59063021]
[1725136965474,0.00818,59097.0,59096.0,1.60463021]
[1725136966931,0.00818,59097.0,59096.0,1.60663021]
[1725136971328,0.00818,59097.0,59096.0,1.60463021]
[1725136972706,0.00818,59097.0,59096.0,0.780248]
[1725136972917,0.00614332,59097.0,59096.0,0.436816]
[1725136973784,0.00389793,59097.0,59096.0,0.436816]
[1725136973988,0.00389793,59097.0,59096.0,0.441816]
[1725136974193,0.00389793,59097.0,59096.0,0.780248]
[1725136974394,0.00389793,59097.0,59096.0,0.766248]
[1725136974806,0.00389793,59097.0,59096.0,0.780248]
[1725136975433,0.00389793,59097.0,59096.0,0.766248]
[1725136975649,0.00389793,59097.0,59096.0,0.1105]
[1725136975867,0.96548114,59097.0,59096.0,0.0965]
[1725136976050,1.30390714,59097.0,59096.0,0.0965]
[1725136976313,1.30390714,59097.0,59096.0,0.1105]
[1725136976530,1.30390714,59097.0,59096.0,0.0965]
[1725136976783,1.30390714,59097.0,59096.0,0.028]
[1725136977235,1.30390714,59097.0,59096.0,0.014]
[1725136977649,1.30490714,59097.0,59096.0,0.014]
[1725136977879,1.30490714,59097.0,59096.0,0.028]
[1725136978437,1.30490714,59097.0,59096.0,0.014]
[1725136978530,1.30490714,59097.0,59096.0,0.028]
[1725136981903,1.185533,59095.0,59094.0,0.0139796]
[1725136983739,1.186833,59095.0,59094.0,0.0279796]
[1725136984151,1.187833,59095.0,59094.0,0.0409796]
[1725136984595,1.186833,59095.0,59094.0,0.0279796]
[1725136984839,1.525271,59095.0,59094.0,0.0329796]
[1725136985252,1.525271,59095.0,59094.0,0.0279796]
[1725136985253,1.56708738,59095.0,59094.0,0.0279796]
[1725136985457,1.525271,59095.0,59094.0,0.0148998]
[1725136985637,1.525271,59095.0,59094.0,0.0008998]
[1725136985864,1.525271,59095.0,59094.0,0.0058998]
[1725136986135,1.525271,59095.0,59094.0,0.0008998]
[1725136986545,1.527271,59095.0,59094.0,0.0008998]
[1725136986955,1.525271,59095.0,59094.0,0.0008998]
[1725136987855,1.527271,59095.0,59094.0,0.0008998]
[1725136988011,1.527271,59095.0,59094.0,0.0018998]
[1725136989137,1.525271,59095.0,59094.0,0.0018998]
[1725136989734,1.525271,59095.0,59094.0,0.0149798]
[1725136994133,1.526089,59095.0,59094.0,0.0149798]
[1725136995698,1.187651,59095.0,59094.0,0.0149798]
[1725136996861,1.32055247,59095.0,59094.0,0.0149798]
[1725136997621,1.30316921,59095.0,59094.0,0.0149798]
[1725137002430,1.40316921,59095.0,59094.0,0.0149798]
[1725137005182,1.74160721,59095.0,59094.0,0.0149798]
[1725137011578,1.626089,59095.0,59094.0,0.0149798]
[1725137012003,1.74160721,59095.0,59094.0,0.0149798]
[1725137012878,2.29500064,59095.0,59094.0,0.0149798]
[1725137013515,2.24859685,59095.0,59094.0,0.0149798]
[1725137013725,2.24859685,59095.0,59094.0,0.0139798]
[1725137013936,2.26059685,59095.0,59094.0,0.0149798]
[1725137015194,2.26459685,59095.0,59094.0,0.0149798]
[1725137015392,2.25059685,59095.0,59094.0,0.0139798]
[1725137015613,2.26259685,59095.0,59094.0,0.0149798]
[1725137015823,2.27659685,59095.0,59094.0,0.0159798]
[1725137016851,2.27459685,59095.0,59094.0,0.0159798]
[1725137018284,1.93582621,59095.0,59094.0,0.0159798]
[1725137019190,2.10504521,59095.0,59094.0,0.0159798]
[1725137022090,2.10704521,59095.0,59094.0,0.0159798]
[1725137023183,1.5232,59086.0,59085.0,0.0658]
[1725137023406,1.6232,59086.0,59085.0,0.0658]
[1725137023823,1.73871821,59086.0,59085.0,0.0658]
[1725137024512,1.74071821,59086.0,59085.0,0.0658]
[1725137025530,1.74471821,59086.0,59085.0,0.0658]
[1725137027299,1.76610283,59086.0,59085.0,0.0658]
[1725137028524,1.76610283,59086.0,59085.0,0.0666998]
[1725137032563,1.76610283,59086.0,59085.0,0.0008998]
[1725137033207,1.65058462,59086.0,59085.0,0.0008998]
[1725137033400,1.76610283,59086.0,59085.0,0.0673998]
[1725137034263,1.76510274,59086.0,59085.0,0.0673998]
[1725137034733,1.59685883,59086.0,59085.0,0.0673998]
[1725137035426,1.76610283,59086.0,59085.0,0.0673998]
[1725137039588,1.76610283,59086.0,59085.0,0.1575998]
[1725137046254,1.76610283,59086.0,59085.0,0.0673998]
[1725137046692,1.76610283,59086.0,59085.0,0.0008998]
[1725137047098,1.31209562,59086.0,59085.0,0.1595998]
[1725137047305,0.106,59086.0,59085.0,0.1595998]
[1725137047532,0.006,59086.0,59085.0,0.6673418]
[1725137047762,0.006,59086.0,59085.0,1.0058368]
[1725137047982,0.006,59086.0,59085.0,0.6673418]
[1725137048667,0.002,59086.0,59085.0,0.6673418]
[1725137048884,0.169228,59092.0,59086.0,0.169242]
[1725137049212,0.1,59091.0,59087.0,0.169241]
[1725137049437,0.1,59091.0,59088.0,0.169238]
[1725137049695,0.000818,59094.0,59088.0,0.338475]
[1725137049913,0.000818,59094.0,59091.0,0.320229]
[1725137050164,0.00744048,59093.0,59092.0,0.148]
[1725137050851,0.00744048,59093.0,59092.0,0.146]
[1725137051067,0.00744048,59093.0,59092.0,0.141]
[1725137052259,0.01744048,59093.0,59092.0,0.142]
[1725137053170,0.01744048,59093.0,59092.0,0.988137]
[1725137053392,0.01744048,59093.0,59092.0,1.10365521]
[1725137053611,0.01,59093.0,59092.0,1.10365521]
[1725137053836,0.010818,59093.0,59092.0,1.10365521]
[1725137054068,0.004818,59093.0,59092.0,1.10265521]
[1725137054496,0.009818,59093.0,59092.0,1.10265521]
[1725137055054,0.006818,59093.0,59092.0,1.11665521]
[1725137055276,0.006818,59093.0,59092.0,1.45511021]
[1725137055449,0.010818,59093.0,59092.0,1.45511021]
[1725137055971,0.006818,59093.0,59092.0,1.45511021]
[1725137056176,0.007818,59093.0,59092.0,1.353592]
[1725137056350,0.1,59104.0,59096.0,0.507648]
[1725137056554,0.169173,59111.0,59096.0,1.11259821]
[1725137056757,0.177353,59112.0,59096.0,1.45103021]
[1725137057136,0.169174,59111.0,59096.0,1.45103021]
[1725137057357,0.169176,59110.0,59096.0,1.45103021]
[1725137057619,0.16918,59109.0,59096.0,1.45103021]
[1725137057821,0.1,59108.0,59096.0,1.45103021]
[1725137058042,0.00489793,59097.0,59096.0,1.46303021]
[1725137058460,0.00589793,59097.0,59096.0,1.47403021]
[1725137061360,0.00589793,59097.0,59096.0,1.47903021]
[1725137063053,0.00818,59112.0,59099.0,1.257752]
[1725137063280,0.00818,59112.0,59099.0,1.45847021]
[1725137063714,0.00818,59112.0,59099.0,1.82488521]
[1725137063918,0.00818,59112.0,59111.0,1.004365]
[1725137064751,0.00818,59112.0,59111.0,1.003365]
[1725137065168,0.01418,59112.0,59111.0,1.003365]
[1725137065683,0.01518,59112.0,59111.0,1.003365]
[1725137066317,0.01418,59112.0,59111.0,1.003365]
[1725137066940,0.00818,59112.0,59111.0,1.003365]
[1725137067172,0.00818,59112.0,59111.0,1.341711]
[1725137067830,0.269142,59122.0,59117.0,0.169154]
[1725137068037,0.338215,59134.0,59125.0,0.169131]
[1725137068237,0.12369821,59135.0,59124.0,0.0733]
[1725137068238,0.11551821,59129.0,59124.0,0.0733]
[1725137068655,0.169126,59128.0,59124.0,0.0733]
[1725137068862,0.169128,59127.0,59124.0,0.0733]
[1725137069062,0.154128,59127.0,59124.0,0.0733]
[1725137069356,0.11551821,59129.0,59124.0,0.0733]
[1725137069625,0.169128,59127.0,59124.0,0.0733]
[1725137069833,0.169128,59127.0,59124.0,0.0753]
[1725137070471,0.169128,59127.0,59124.0,0.0783]
[1725137070907,0.169128,59127.0,59124.0,0.0813]
[1725137071331,0.169128,59127.0,59124.0,0.0793]
[1725137071541,0.169128,59127.0,59124.0,0.0813]
[1725137071975,0.169128,59127.0,59124.0,0.0793]
[1725137072403,0.16913,59126.0,59124.0,0.0833]
[1725137072828,0.16913,59126.0,59124.0,0.0793]
[1725137073038,0.338224,59133.0,59124.0,0.0833]
[1725137073039,0.169133,59125.0,59124.0,0.0833]
[1725137073442,0.338256,59127.0,59124.0,0.0833]
[1725137073919,0.169133,59125.0,59124.0,0.0833]
[1725137074365,0.164133,59125.0,59124.0,0.0733]
[1725137074552,0.164133,59125.0,59124.0,0.0783]
[1725137075014,0.164133,59125.0,59124.0,0.0733]
[1725137075461,0.164133,59125.0,59124.0,0.0803]
[1725137075883,0.164133,59125.0,59124.0,0.0833]
[1725137076961,0.164133,59125.0,59124.0,0.0803]
[1725137077483,0.164133,59125.0,59124.0,0.0863]
[1725137078952,0.840665,59125.0,59124.0,0.0863]
[1725137079161,0.502399,59125.0,59124.0,0.0863]
[1725137079855,0.50990773,59125.0,59124.0,0.0863]
[1725137080514,0.50990773,59125.0,59124.0,0.0733]
[1725137080930,0.50990773,59125.0,59124.0,0.0863]
[1725137081181,0.50990773,59125.0,59124.0,0.0803]
[1725137081399,0.50990773,59125.0,59124.0,0.0733]
[1725137081611,0.50990773,59125.0,59124.0,0.0803]
[1725137081612,0.17164173,59125.0,59124.0,0.0803]
[1725137081822,0.50990773,59125.0,59124.0,0.0863]
[1725137082214,0.50990773,59125.0,59124.0,0.0793]
[1725137082623,0.00750873,59125.0,59124.0,0.0793]
[1725137083002,0.169133,59125.0,59124.0,0.0793]
[1725137083210,0.51491196,59125.0,59124.0,0.0733]
[1725137083413,0.51491196,59125.0,59124.0,0.0863]
[1725137083587,0.17664596,59125.0,59124.0,0.0863]
[1725137083793,0.17664596,59125.0,59124.0,0.0733]
[1725137084011,0.17664596,59125.0,59124.0,0.0803]
[1725137084229,0.17664596,59125.0,59124.0,0.0883]
[1725137084601,0.51287635,59125.0,59124.0,0.0883]
[1725137086574,0.17461035,59125.0,59124.0,0.0883]
[1725137089093,0.51287635,59125.0,59124.0,0.0883]
[1725137089299,0.17461035,59125.0,59124.0,0.0883]
[1725137089712,0.17461035,59125.0,59124.0,0.0891998]
[1725137091092,0.51287635,59125.0,59124.0,0.0891998]
[1725137091329,0.17461035,59125.0,59124.0,0.0891998]
[1725137093581,0.51287635,59125.0,59124.0,0.0891998]
[1725137096920,0.85114235,59125.0,59124.0,0.0891998]
[1725137099020,1.23172172,59125.0,59124.0,0.0158998]
[1725137099219,1.28940835,59125.0,59124.0,0.0158998]
[1725137100092,1.28940835,59125.0,59124.0,0.0078998]
[1725137100297,1.28940835,59125.0,59124.0,0.0008998]
[1725137100553,1.28940835,59125.0,59124.0,0.0018998]
[1725137101072,1.28940835,59125.0,59124.0,0.0038998]
[1725137102069,1.40492656,59125.0,59124.0,0.0038998]
[1725137102936,1.40574456,59125.0,59124.0,0.0038998]
[1725137109400,1.06747856,59125.0,59124.0,0.0038998]
[1725137109603,1.06747856,59125.0,59124.0,0.0774998]
[1725137110060,0.95196035,59125.0,59124.0,0.0774998]
[1725137110290,1.06747856,59125.0,59124.0,0.0774998]
[1725137111872,1.06747856,59125.0,59124.0,0.0754998]
[1725137112083,1.06747856,59125.0,59124.0,0.0774998]
[1725137112558,1.06747856,59125.0,59124.0,0.0754998]
[1725137112798,1.06747856,59125.0,59124.0,0.0764998]
[1725137113013,1.06200121,59125.0,59124.0,0.0814998]
[1725137113224,1.06200121,59125.0,59124.0,0.0794998]
[1725137113442,0.72373521,59125.0,59124.0,0.0834998]
[1725137114354,0.72373521,59125.0,59124.0,0.1745998]
[1725137116197,0.100818,59125.0,59124.0,0.1745998]
[1725137116423,0.000818,59125.0,59124.0,0.1745998]
[1725137116843,0.100818,59125.0,59124.0,0.1745998]
[1725137118649,0.000818,59125.0,59124.0,0.6820078]
[1725137119333,0.000818,59125.0,59124.0,1.0202798]
[1725137119756,0.000818,59125.0,59124.0,0.6820078]
[1725137122297,0.000818,59125.0,59124.0,1.0202798]
[1725137124911,0.000818,59125.0,59124.0,0.6820078]
[1725137125123,0.000818,59125.0,59124.0,1.0202798]
[1725137127226,0.000818,59125.0,59124.0,1.0162798]
[1725137127451,0.000818,59125.0,59124.0,0.6780078]
[1725137127655,0.000818,59125.0,59124.0,0.6860078]
[1725137128072,0.000818,59125.0,59124.0,0.7000078]
[1725137130528,0.000818,59125.0,59124.0,1.0382798]
[1725137130734,0.000818,59125.0,59124.0,0.7000078]
[1725137138863,0.000818,59125.0,59124.0,0.3617358]
[1725137139080,0.000818,59125.0,59124.0,0.7000078]
[1725137139296,0.28423753,59130.0,59125.0,0.169131]
[1725137139516,0.28423753,59130.0,59125.0,0.239231]
[1725137139943,0.28423753,59130.0,59126.0,0.0701]
[1725137141081,0.169121,59129.0,59126.0,0.0701]
[1725137141765,0.169121,59129.0,59126.0,0.0781]
[1725137142182,0.169121,59129.0,59126.0,0.0771]
[1725137142622,0.169121,59129.0,59126.0,0.0791]
[1725137143459,0.169125,59128.0,59126.0,0.0871]
[1725137144529,0.169125,59128.0,59126.0,0.0781]
[1725137144750,0.169125,59128.0,59126.0,0.0881]
[1725137144973,0.169125,59128.0,59126.0,0.0801]
[1725137145443,0.169125,59128.0,59126.0,0.0891]
[1725137148274,0.119125,59128.0,59126.0,0.0891]
[1725137148524,0.169127,59127.0,59126.0,0.0891]
[1725137149354,0.169127,59127.0,59126.0,0.0899998]
[1725137149568,0.000818,59128.0,59126.0,0.0899998]
[1725137149779,0.169943,59128.0,59126.0,0.0809998]
[1725137149991,0.169943,59128.0,59126.0,0.0919998]
[1725137150445,0.169943,59128.0,59127.0,0.0646]
[1725137150446,0.000818,59128.0,59127.0,0.0646]
[1725137150671,0.000818,59128.0,59127.0,0.1521]
[1725137151805,0.000818,59128.0,59127.0,0.1621]
[1725137152651,0.000818,59128.0,59127.0,0.331227]
[1725137153116,0.000818,59128.0,59127.0,0.1521]
[1725137153326,0.000818,59128.0,59127.0,0.1761]
[1725137154611,0.000818,59128.0,59127.0,0.1641]
[1725137155312,0.000818,59128.0,59127.0,0.345227]
[1725137155801,0.000818,59128.0,59127.0,0.358227]
[1725137156276,0.000818,59128.0,59127.0,0.346227]
[1725137156495,0.000818,59128.0,59127.0,0.360227]
[1725137159696,0.02735363,59128.0,59127.0,0.360227]
[1725137160390,0.02735363,59128.0,59127.0,0.1911]
[1725137160873,0.02735363,59128.0,59127.0,0.1036]
[1725137161096,0.53472663,59128.0,59127.0,0.039]
[1725137161315,0.87297563,59128.0,59127.0,0.039]
[1725137168479,0.53472663,59128.0,59127.0,0.039]
[1725137172216,0.53472663,59128.0,59127.0,0.1097]
[1725137174185,0.53472663,59128.0,59127.0,0.1105998]
[1725137177083,0.87297563,59128.0,59127.0,0.1105998]
[1725137177305,0.53472663,59128.0,59127.0,0.1105998]
[1725137178808,0.87297563,59128.0,59127.0,0.1105998]
[1725137179017,0.53472663,59128.0,59127.0,0.1105998]
[1725137179439,0.87297563,59128.0,59127.0,0.1105998]
[1725137180297,0.62066442,59128.0,59127.0,0.1105998]
[1725137180527,0.81632479,59128.0,59127.0,0.1105998]
[1725137181014,0.47807579,59128.0,59127.0,0.1105998]
[1725137181468,0.47807579,59128.0,59127.0,0.1929998]
[1725137181469,0.02653637,59128.0,59127.0,0.1929998]
[1725137181678,0.19566037,59128.0,59127.0,0.1929998]
[1725137181886,0.02653637,59128.0,59127.0,0.1929998]
[1725137183231,0.19566037,59128.0,59127.0,0.1929998]
[1725137184311,0.02653637,59128.0,59127.0,0.1929998]
[1725137184446,0.02653637,59128.0,59127.0,0.365509]
[1725137184649,0.02653637,59128.0,59127.0,0.703763]
[1725137185087,0.02653637,59128.0,59127.0,0.7003808]
[1725137185283,0.02653637,59128.0,59127.0,0.3621268]
[1725137185480,0.02653637,59128.0,59127.0,0.7003808]
[1725137186657,0.02735437,59128.0,59127.0,0.7003808]
[1725137189723,0.000818,59128.0,59127.0,0.7003808]
[1725137191179,0.000818,59128.0,59127.0,0.3621268]
[1725137192696,0.000818,59128.0,59127.0,0.3481268]
[1725137193117,0.02735361,59128.0,59127.0,0.3621268]
[1725137193529,0.02735361,59128.0,59127.0,0.3371268]
[1725137193741,0.02735361,59128.0,59127.0,0.3511268]
[1725137194363,0.02735361,59128.0,59127.0,0.3371268]
[1725137194573,0.000818,59128.0,59127.0,0.3371268]
[1725137194799,0.000818,59128.0,59127.0,0.3511268]
[1725137196363,0.000818,59128.0,59127.0,1.0276348]
[1725137196571,0.000818,59128.0,59127.0,1.3678888]
[1725137196785,0.000818,59128.0,59127.0,1.4503888]
[1725137197498,0.000818,59128.0,59127.0,1.4223888]
[1725137197936,0.02734805,59128.0,59127.0,1.4223888]
[1725137198158,0.00234805,59128.0,59127.0,1.4503888]
[1725137198417,0.00234805,59128.0,59127.0,1.4343888]
[1725137198623,0.00818,59135.0,59134.0,0.507321]
[1725137198863,0.00818,59135.0,59134.0,0.664721]
[1725137201152,0.00818,59135.0,59134.0,0.678721]
[1725137201384,0.00818,59135.0,59134.0,0.692721]
[1725137204353,0.00818,59135.0,59134.0,0.354507]
[1725137216143,0.00818,59135.0,59134.0,0.1854]
[1725137219292,0.12369821,59135.0,59134.0,0.1854]
[1725137219519,0.29280221,59135.0,59134.0,0.028]
[1725137219921,0.63101121,59135.0,59134.0,0.028]
[1725137220076,0.96922021,59135.0,59134.0,0.028]
[1725137220548,1.30742921,59135.0,59134.0,0.028]
[1725137221341,1.30742921,59135.0,59134.0,0.014]
[1725137222590,0.845607,59129.0,59128.0,0.0008998]
[1725137222818,0.96112521,59129.0,59128.0,0.0008998]
[1725137223973,0.96112521,59129.0,59128.0,0.0238998]
[1725137225140,0.507364,59129.0,59128.0,0.0238998]
[1725137227070,0.169121,59129.0,59128.0,0.0238998]
[1725137227271,0.169121,59129.0,59128.0,0.1729998]
[1725137227474,0.50735,59131.0,59128.0,0.1729998]
[1725137227671,0.16912,59130.0,59128.0,0.1729998]
[1725137227913,0.169121,59129.0,59128.0,0.1729998]
[1725137228327,0.338233,59131.0,59128.0,0.1729998]
[1725137228537,0.14205277,59132.0,59128.0,0.1729998]
[1725137228745,0.02653456,59132.0,59128.0,0.1729998]
[1725137228955,0.169118,59131.0,59128.0,0.1729998]
[1725137229169,0.169118,59131.0,59128.0,0.1619998]
[1725137229403,0.169118,59131.0,59128.0,0.1499998]
[1725137229602,0.169118,59131.0,59128.0,0.3361238]
[1725137229811,0.169118,59131.0,59128.0,0.1669998]
[1725137229812,0.169117,59131.0,59128.0,0.1669998]
[1725137231032,0.02653456,59132.0,59128.0,0.1003998]
[1725137231235,0.19564756,59132.0,59129.0,0.07]
[1725137231582,0.169113,59132.0,59129.0,0.07]
[1725137232575,0.169113,59132.0,59129.0,0.077]
[1725137232781,0.169113,59132.0,59129.0,0.246121]
[1725137233443,0.169113,59132.0,59129.0,0.254121]
[1725137233644,0.338219,59134.0,59129.0,0.254121]
[1725137233848,0.169111,59133.0,59129.0,0.254121]
[1725137234723,0.19564462,59133.0,59129.0,0.254121]
[1725137235134,0.02653362,59133.0,59130.0,0.169116]
[1725137235351,0.02653362,59133.0,59132.0,0.254213]
[1725137235562,0.02653362,59133.0,59132.0,1.000665]
[1725137236411,0.02653362,59133.0,59132.0,1.007665]
[1725137237278,0.02653362,59133.0,59132.0,1.000665]
[1725137237518,0.02653362,59133.0,59132.0,1.010665]
[1725137238243,0.02653362,59133.0,59132.0,1.020665]
[1725137238945,0.00818,59135.0,59134.0,0.239507]
[1725137239181,0.00818,59135.0,59134.0,0.0704]
[1725137240163,0.00818,59135.0,59134.0,0.0784]
[1725137241623,0.00818,59135.0,59134.0,0.247507]
[1725137241852,0.00818,59135.0,59134.0,0.254507]
[1725137242077,0.00818,59135.0,59134.0,0.0854]
[1725137249254,0.00818,59135.0,59134.0,0.254507]
[1725137254812,0.00818,59135.0,59134.0,0.0854]
[1725137255768,0.00818,59135.0,59134.0,0.254507]
[1725137257829,0.03471251,59135.0,59134.0,0.254507]
[1725137260912,0.03471251,59135.0,59134.0,0.0854]
[1725137261370,0.00818,59135.0,59134.0,0.0854]
[1725137264604,0.00818,59136.0,59134.0,0.0854]
[1725137264605,0.169102,59136.0,59134.0,0.0854]
[1725137265360,0.277278,59138.0,59134.0,0.0854]
[1725137265590,0.169099,59137.0,59134.0,0.0704]
[1725137265833,0.169099,59137.0,59134.0,0.0834]
[1725137266756,0.169099,59137.0,59134.0,0.0774]
[1725137267209,0.169099,59137.0,59134.0,0.0704]
[1725137267671,0.169099,59137.0,59134.0,0.0754]
[1725137268225,0.169099,59137.0,59134.0,0.0804]
[1725137268687,0.169099,59137.0,59134.0,0.0754]
[1725137268906,0.169099,59137.0,59134.0,0.0814]
[1725137269361,0.169099,59137.0,59134.0,0.0822998]
[1725137271239,0.169101,59136.0,59134.0,0.0822998]
[1725137271951,0.19563338,59136.0,59134.0,0.0822998]
[1725137272182,0.19563338,59136.0,59134.0,0.0762998]
[1725137272407,0.19563338,59136.0,59134.0,0.0712998]